fUSD/lending_fUSD_20240907
["ID","MTS","AMOUNT","RATE_DAILY","PERIOD"]
[337427549,1725667315446,500.0,0.00031401,30]
[337427550,1725667416817,150.0,0.00010959,2]
[337427551,1725667416842,10.32,0.00010959,2]
[337427553,1725667606516,155.23,0.00013182,30]
[337427607,1725667653793,500.0,0.00031406,30]
[337427608,1725667665453,500.0,0.00031406,30]
[337427609,1725667673191,500.0,0.00031406,30]
[337427610,1725667703216,685.1,0.0001098,2]
[337427618,1725667823399,500.0,0.00027,120]
[337427628,1725667831745,-1100.52168804,0.00012593,2]
[337427629,1725667831924,-3082.03617125,0.00012593,2]
[337427630,1725667834422,-1754.32624438,0.00012593,2]
[337427642,1725667837778,-948.79319633,0.00012593,2]
[337427643,1725667837788,-300.0,0.00012692,2]
[337427644,1725667837797,-6387.06486664,0.00012693,2]
[337427645,1725667837807,-498.72559779,0.00012693,2]
[337427646,1725667837921,-483.28063557,0.00012693,2]
[337427647,1725667837931,-4937.96521143,0.00012697,2]
[337427648,1725667837942,-18962.03478857,0.00012697,2]
[337427649,1725667837957,-2714.4,0.00012739,2]
[337427650,1725667837975,-150.0,0.00012756,2]
[337427651,1725667837993,-761.94,0.00012756,2]
[337427652,1725667838012,-711.58,0.0001284,2]
[337427653,1725667838031,-33128.85481135,0.00012893,2]
[337427654,1725667838084,-271.23639,0.00012893,2]
[337427655,1725667838101,-748.74749312,0.00012893,2]
[337427656,1725667838121,-313.147835,0.00012893,2]
[337427657,1725667838143,-868.46789177,0.00012893,2]
[337427658,1725667838158,-1735.72777876,0.00012893,2]
[337427660,1725667838175,-2425.3,0.00012896,2]
[337427662,1725667838190,-150.0,0.00012961,2]
[337427664,1725667838205,-1500.0,0.00012962,2]
[337427665,1725667838217,-1050.0,0.00012979,2]
[337427666,1725667838233,-500.0,0.00013014,2]
[337427667,1725667838248,-385.83,0.00013014,2]
[337427668,1725667838263,-322.69,0.00013014,2]
[337427669,1725667838277,-1852.42,0.00013022,2]
[337427670,1725667838292,-167.52,0.00013047,2]
[337427672,1725667838306,-5135.19,0.00013047,2]
[337427673,1725667838320,-4148.35,0.00013047,2]
[337427674,1725667838335,-444.31,0.00013063,2]
[337427677,1725667838349,-536.46,0.00013063,2]
[337427679,1725667838363,-8693.27977096,0.00013063,2]
[337427686,1725667838421,-8955.33022904,0.00013063,2]
[337427689,1725667838436,-250.0,0.00013087,2]
[337427691,1725667838451,-500.0,0.00013112,2]
[337427694,1725667838466,-499.99,0.00013112,2]
[337427696,1725667838479,-5831.52,0.00013112,2]
[337427699,1725667838494,-499.99,0.00013112,2]
[337427701,1725667838509,-250.0,0.00013153,2]
[337427704,1725667838524,-1680.5,0.00013153,2]
[337427706,1725667838537,-533.25,0.00013241,2]
[337427709,1725667838552,-685.1,0.00013244,2]
[337427711,1725667838566,-999.99,0.00013245,2]
[337427714,1725667838580,-150.99,0.00013245,2]
[337427716,1725667838595,-250.0,0.00013246,2]
[337427719,1725667838609,-4249.61,0.00013246,2]
[337427721,1725667838623,-1195.54,0.00013268,2]
[337427724,1725667838637,-238.06,0.0001329,2]
[337427726,1725667838658,-387.97,0.00013332,2]
[337427729,1725667838673,-150.0,0.00013377,2]
[337427731,1725667838686,-176.346,0.00013377,2]
[337427733,1725667838700,-158.12,0.00013453,2]
[337427735,1725667838714,-174.197,0.000135,2]
[337427737,1725667838729,-195.02,0.00013599,2]
[337427739,1725667838743,-179.16,0.00013699,2]
[337427741,1725667838757,-2751.0,0.00013699,2]
[337427742,1725667838771,-178.11,0.00013699,2]
[337427743,1725667838785,-500.0,0.00013699,2]
[337427744,1725667838799,-200.0,0.00013699,2]
[337427745,1725667838813,-1260.0,0.00013779,2]
[337427746,1725667838826,-447.0,0.00013779,2]
[337427747,1725667838843,-624.0,0.00013779,2]
[337427748,1725667838857,-1539.61,0.00013779,2]
[337427749,1725667838870,-931.0,0.00013779,2]
[337427750,1725667838879,-553.0,0.00013779,2]
[337427752,1725667839043,-811.0,0.00013779,2]
[337427753,1725667839073,-445.554,0.00013779,2]
[337427754,1725667839083,-2503.779,0.00013779,2]
[337427755,1725667839093,-255.0,0.00014063,2]
[337427756,1725667839102,-4703.45695302,0.00014092,2]
[337427757,1725667839111,-4703.45695302,0.00014182,2]
[337427758,1725667839121,-427.46,0.00014192,2]
[337427759,1725667839131,-150.0,0.00014192,2]
[337427760,1725667839145,-427.46,0.00014192,2]
[337427761,1725667839154,-357.41,0.00014192,2]
[337427762,1725667839163,-427.46,0.00014192,2]
[337427763,1725667839172,-357.41,0.00014192,2]
[337427764,1725667839182,-150.0,0.00014192,2]
[337427765,1725667839191,-357.41,0.00014192,2]
[337427766,1725667839200,-150.0,0.00014192,2]
[337427767,1725667839209,-427.46,0.00014192,2]
[337427768,1725667839218,-427.46,0.00014192,2]
[337427769,1725667839227,-357.41,0.00014192,2]
[337427770,1725667839236,-150.0,0.00014192,2]
[337427771,1725667839245,-714.74,0.00014192,2]
[337427772,1725667839254,-427.46,0.00014192,2]
[337427773,1725667839265,-150.0,0.00014192,2]
[337427774,1725667839274,-400.32,0.00014192,2]
[337427775,1725667839283,-427.46,0.00014192,2]
[337427776,1725667839293,-357.41,0.00014192,2]
[337427777,1725667839302,-427.46,0.00014192,2]
[337427778,1725667839311,-357.41,0.00014192,2]
[337427779,1725667839320,-427.46,0.00014192,2]
[337427780,1725667839329,-427.46,0.00014192,2]
[337427781,1725667839338,-514.29,0.00014192,2]
[337427782,1725667839348,-427.46,0.00014192,2]
[337427783,1725667839358,-357.41,0.00014192,2]
[337427784,1725667839367,-357.41,0.00014192,2]
[337427785,1725667839376,-427.46,0.00014192,2]
[337427786,1725667839387,-427.46,0.00014192,2]
[337427787,1725667839396,-357.41,0.00014192,2]
[337427788,1725667839405,-427.46,0.00014192,2]
[337427789,1725667839414,-357.41,0.00014192,2]
[337427790,1725667839424,-427.46,0.00014192,2]
[337427791,1725667839433,-357.41,0.00014192,2]
[337427792,1725667839442,-427.46,0.00014192,2]
[337427793,1725667839451,-357.41,0.00014192,2]
[337427794,1725667839461,-427.46,0.00014192,2]
[337427795,1725667839470,-357.41,0.00014192,2]
[337427797,1725667839480,-357.41,0.00014192,2]
[337427798,1725667839490,-427.46,0.00014192,2]
[337427799,1725667839499,-357.41,0.00014192,2]
[337427800,1725667839510,-427.46,0.00014192,2]
[337427801,1725667839521,-427.46,0.00014192,2]
[337427802,1725667839530,-357.41,0.00014192,2]
[337427803,1725667839540,-357.41,0.00014192,2]
[337427804,1725667839550,-427.46,0.00014192,2]
[337427805,1725667839560,-717.88,0.00014192,2]
[337427806,1725667839569,-4703.45695302,0.00014272,2]
[337427807,1725667839579,-761.94,0.00014351,2]
[337427808,1725667839590,-4703.45695302,0.00014361,2]
[337427809,1725667839600,-4703.45695302,0.00014451,2]
[337427810,1725667839609,-4703.45695302,0.00014541,2]
[337427811,1725667839618,-886.3381,0.00014562,2]
[337427812,1725667839627,-4703.45695302,0.00014631,2]
[337427813,1725667839639,-312.14021,0.0001465,2]
[337427814,1725667839648,-830.63,0.00014674,2]
[337427815,1725667839658,-167.52,0.00014677,2]
[337427817,1725667839667,-62207.4226,0.00014684,2]
[337427818,1725667839677,-717.3249,0.00014694,2]
[337427819,1725667839686,-241.94907099,0.00014694,2]
[337427820,1725667839695,-753.57027084,0.00014694,2]
[337427821,1725667839704,-226.80365138,0.00014694,2]
[337427822,1725667839714,-4703.45695302,0.0001472,2]
[337427823,1725667839724,-226.80365136,0.00014723,2]
[337427824,1725667839733,-1012.96631504,0.00014731,2]
[337427825,1725667839744,-226.80365136,0.00014753,2]
[337427826,1725667839755,-1500.0,0.0001476,2]
[337427827,1725667839764,-500.0,0.00014773,2]
[337427828,1725667839774,-500.0,0.00014773,2]
[337427829,1725667839784,-232.09219029,0.00014773,2]
[337427830,1725667839794,-226.80365136,0.00014782,2]
[337427831,1725667839804,-830.63,0.00014784,2]
[337427832,1725667839814,-830.63,0.00014784,2]
[337427833,1725667839824,-830.63,0.00014784,2]
[337427834,1725667839833,-830.63,0.00014784,2]
[337427835,1725667839843,-151.56,0.00014784,2]
[337427836,1725667839852,-20303.4566874,0.00014787,2]
[337427837,1725667839862,-2715.5825551,0.00014787,2]
[337427838,1725667839872,-2894.0971867,0.00014787,2]
[337427839,1725667839883,-245.79950094,0.00014793,2]
[337427840,1725667839893,-500.0,0.00014793,2]
[337427841,1725667839902,-528.63429554,0.00014793,2]
[337427842,1725667839912,-9881.324188,0.00014794,2]
[337427843,1725667839922,-9881.324188,0.00014794,2]
[337427844,1725667839931,-9881.324188,0.00014794,2]
[337427845,1725667839940,-9881.324188,0.00014794,2]
[337427846,1725667839949,-9881.324188,0.00014794,2]
[337427847,1725667839958,-9881.324188,0.00014794,2]
[337427848,1725667839968,-9881.324188,0.00014794,2]
[337427849,1725667839977,-9881.324188,0.00014794,2]
[337427850,1725667839987,-500.0,0.00014794,2]
[337427851,1725667839996,-500.0,0.00014794,2]
[337427852,1725667840005,-500.0,0.00014794,2]
[337427853,1725667840015,-500.0,0.00014794,2]
[337427854,1725667840024,-500.0,0.00014794,2]
[337427855,1725667840033,-500.0,0.00014794,2]
[337427856,1725667840042,-500.0,0.00014794,2]
[337427857,1725667840052,-500.0,0.00014794,2]
[337427858,1725667840062,-500.0,0.00014794,2]
[337427859,1725667840071,-500.0,0.00014794,2]
[337427860,1725667840081,-500.0,0.00014794,2]
[337427861,1725667840091,-500.0,0.00014794,2]
[337427862,1725667840100,-400.85081566,0.00014794,2]
[337427863,1725667840109,-500.0,0.00014794,2]
[337427864,1725667840119,-500.38259923,0.00014794,2]
[337427865,1725667840129,-505.7891522,0.00014794,2]
[337427866,1725667840140,-500.0,0.00014794,2]
[337427867,1725667840150,-500.91049812,0.00014794,2]
[337427868,1725667840159,-500.0,0.00014794,2]
[337427869,1725667840168,-500.0,0.00014794,2]
[337427870,1725667840178,-466.82238955,0.00014794,2]
[337427871,1725667840187,-500.0,0.00014794,2]
[337427872,1725667840196,-500.0,0.00014794,2]
[337427873,1725667840205,-500.0,0.00014794,2]
[337427874,1725667840215,-500.0,0.00014794,2]
[337427875,1725667840224,-500.0,0.00014794,2]
[337427876,1725667840234,-500.0,0.00014794,2]
[337427877,1725667840244,-500.0,0.00014794,2]
[337427878,1725667840253,-500.0,0.00014794,2]
[337427879,1725667840263,-301.60587533,0.00014794,2]
[337427880,1725667840273,-506.33248541,0.00014794,2]
[337427882,1725667840282,-500.0,0.00014794,2]
[337427884,1725667840292,-500.0,0.00014794,2]
[337427886,1725667840301,-500.0,0.00014794,2]
[337427888,1725667840311,-151.0,0.00014794,2]
[337427889,1725667840320,-151.0,0.00014794,2]
[337427891,1725667840330,-151.0,0.00014794,2]
[337427893,1725667840340,-500.0,0.00014794,2]
[337427894,1725667840350,-151.0,0.00014794,2]
[337427895,1725667840359,-151.690431,0.00014794,2]
[337427896,1725667840368,-500.0,0.00014794,2]
[337427897,1725667840378,-151.0,0.00014794,2]
[337427898,1725667840388,-285.48748739,0.00014794,2]
[337427899,1725667840398,-151.0,0.00014794,2]
[337427900,1725667840408,-157.036443,0.00014794,2]
[337427901,1725667840417,-500.0,0.00014794,2]
[337427902,1725667840427,-500.0,0.00014794,2]
[337427903,1725667840436,-151.0,0.00014794,2]
[337427904,1725667840446,-500.0,0.00014794,2]
[337427905,1725667840456,-151.0,0.00014794,2]
[337427906,1725667840465,-151.0,0.00014794,2]
[337427907,1725667840475,-500.0,0.00014794,2]
[337427908,1725667840486,-151.837182,0.00014794,2]
[337427909,1725667840495,-500.0,0.00014794,2]
[337427910,1725667840505,-578.40952564,0.00014794,2]
[337427911,1725667840517,-500.0,0.00014794,2]
[337427912,1725667840527,-495.0,0.00014794,2]
[337427913,1725667840537,-500.0,0.00014794,2]
[337427914,1725667840546,-500.0,0.00014794,2]
[337427915,1725667840557,-500.0,0.00014794,2]
[337427916,1725667840566,-500.0,0.00014794,2]
[337427917,1725667840576,-412.54,0.00014794,2]
[337427918,1725667840586,-500.0,0.00014794,2]
[337427919,1725667840596,-500.0,0.00014794,2]
[337427920,1725667840606,-500.0,0.00014794,2]
[337427921,1725667840616,-500.0,0.00014794,2]
[337427922,1725667840625,-500.0,0.00014794,2]
[337427923,1725667840636,-538.36,0.00014794,2]
[337427924,1725667840646,-500.0,0.00014794,2]
[337427925,1725667840655,-500.0,0.00014794,2]
[337427926,1725667840664,-589.4227239,0.00014794,2]
[337427927,1725667840673,-500.0,0.00014794,2]
[337427928,1725667840683,-151.0,0.00014794,2]
[337427929,1725667840692,-500.0,0.00014794,2]
[337427930,1725667840702,-151.0,0.00014794,2]
[337427931,1725667840711,-151.0,0.00014794,2]
[337427932,1725667840721,-151.0,0.00014794,2]
[337427933,1725667840730,-151.0,0.00014794,2]
[337427934,1725667840741,-500.0,0.00014794,2]
[337427935,1725667840751,-500.0,0.00014794,2]
[337427936,1725667840761,-500.0,0.00014794,2]
[337427937,1725667840770,-500.0,0.00014794,2]
[337427938,1725667840780,-500.97625763,0.00014794,2]
[337427939,1725667840790,-500.0,0.00014794,2]
[337427940,1725667840800,-500.0,0.00014794,2]
[337427941,1725667840810,-400.02,0.00014794,2]
[337427942,1725667840820,-500.0,0.00014794,2]
[337427943,1725667840829,-500.0,0.00014794,2]
[337427944,1725667840840,-500.0,0.00014794,2]
[337427945,1725667840849,-500.0,0.00014794,2]
[337427946,1725667840860,-452.51,0.00014794,2]
[337427947,1725667840870,-500.0,0.00014794,2]
[337427948,1725667840880,-500.0,0.00014794,2]
[337427949,1725667840890,-398.09,0.00014794,2]
[337427950,1725667840900,-500.0,0.00014794,2]
[337427951,1725667840909,-500.0,0.00014794,2]
[337427952,1725667840919,-344.06,0.00014794,2]
[337427953,1725667840928,-500.0,0.00014794,2]
[337427954,1725667840938,-500.0,0.00014794,2]
[337427955,1725667840948,-176.76,0.00014794,2]
[337427956,1725667841051,-500.0,0.00014794,2]
[337427957,1725667841067,-500.0,0.00014794,2]
[337427958,1725667841077,-572.39,0.00014794,2]
[337427959,1725667841086,-500.0,0.00014794,2]
[337427960,1725667841096,-500.0,0.00014794,2]
[337427961,1725667841106,-500.0,0.00014794,2]
[337427962,1725667841116,-500.0,0.00014794,2]
[337427963,1725667841126,-152.03,0.00014794,2]
[337427964,1725667841136,-416.66,0.00014794,2]
[337427965,1725667841146,-500.0,0.00014794,2]
[337427966,1725667841156,-500.0,0.00014794,2]
[337427967,1725667841165,-500.0,0.00014794,2]
[337427968,1725667841175,-500.0,0.00014794,2]
[337427969,1725667841184,-488.47,0.00014794,2]
[337427970,1725667841194,-500.0,0.00014794,2]
[337427971,1725667841203,-500.0,0.00014794,2]
[337427972,1725667841213,-500.0,0.00014794,2]
[337427973,1725667841223,-500.0,0.00014794,2]
[337427974,1725667841233,-500.0,0.00014794,2]
[337427975,1725667841242,-500.0,0.00014794,2]
[337427976,1725667841252,-500.0,0.00014794,2]
[337427977,1725667841261,-500.0,0.00014794,2]
[337427978,1725667841271,-215.02,0.00014794,2]
[337427979,1725667841280,-500.0,0.00014794,2]
[337427980,1725667841290,-500.0,0.00014794,2]
[337427981,1725667841299,-500.0,0.00014794,2]
[337427982,1725667841309,-500.0,0.00014794,2]
[337427983,1725667841318,-507.89,0.00014794,2]
[337427984,1725667841328,-500.0,0.00014794,2]
[337427985,1725667841337,-500.0,0.00014794,2]
[337427986,1725667841347,-588.51,0.00014794,2]
[337427987,1725667841356,-500.0,0.00014794,2]
[337427988,1725667841365,-500.0,0.00014794,2]
[337427989,1725667841375,-500.0,0.00014794,2]
[337427990,1725667841384,-150.13944961,0.00014794,2]
[337427991,1725667841393,-500.0,0.00014794,2]
[337427992,1725667841403,-411.97782389,0.00014794,2]
[337427993,1725667841412,-500.0,0.00014794,2]
[337427994,1725667841423,-500.0,0.00014794,2]
[337427995,1725667841432,-561.77,0.00014794,2]
[337427996,1725667841441,-500.0,0.00014794,2]
[337427997,1725667841450,-500.0,0.00014794,2]
[337427998,1725667841460,-500.0,0.00014794,2]
[337427999,1725667841470,-500.0,0.00014794,2]
[337428000,1725667841480,-512.87,0.00014794,2]
[337428001,1725667841490,-500.0,0.00014794,2]
[337428002,1725667841500,-301.52,0.00014794,2]
[337428003,1725667841512,-500.0,0.00014794,2]
[337428004,1725667841522,-500.0,0.00014794,2]
[337428005,1725667841532,-500.0,0.00014794,2]
[337428006,1725667841541,-500.0,0.00014794,2]
[337428007,1725667841550,-500.0,0.00014794,2]
[337428008,1725667841560,-500.0,0.00014794,2]
[337428009,1725667841571,-181.94,0.00014794,2]
[337428010,1725667841581,-222.41,0.00014794,2]
[337428011,1725667841592,-500.0,0.00014794,2]
[337428012,1725667841602,-500.0,0.00014794,2]
[337428013,1725667841611,-501.46128892,0.00014794,2]
[337428014,1725667841620,-500.0,0.00014794,2]
[337428015,1725667841629,-500.0,0.00014794,2]
[337428016,1725667841640,-500.0,0.00014794,2]
[337428017,1725667841649,-575.27,0.00014794,2]
[337428018,1725667841658,-500.0,0.00014794,2]
[337428019,1725667841668,-500.0,0.00014794,2]
[337428020,1725667841677,-500.0,0.00014794,2]
[337428021,1725667841686,-500.0,0.00014794,2]
[337428022,1725667841696,-542.5,0.00014794,2]
[337428023,1725667841705,-150.25997031,0.00014794,2]
[337428024,1725667841715,-500.0,0.00014794,2]
[337428025,1725667841724,-307.24,0.00014794,2]
[337428026,1725667841734,-503.63591422,0.00014794,2]
[337428027,1725667841743,-500.0,0.00014794,2]
[337428028,1725667841752,-500.0,0.00014794,2]
[337428029,1725667841762,-530.61949934,0.00014794,2]
[337428030,1725667841771,-422.15853091,0.00014794,2]
[337428031,1725667841780,-500.0,0.00014794,2]
[337428032,1725667841790,-500.0,0.00014794,2]
[337428033,1725667841799,-500.0,0.00014794,2]
[337428034,1725667841808,-500.0,0.00014794,2]
[337428035,1725667841817,-500.0,0.00014794,2]
[337428036,1725667841827,-500.91347956,0.00014794,2]
[337428037,1725667841836,-225.97044,0.00014794,2]
[337428038,1725667841845,-500.0,0.00014794,2]
[337428039,1725667841855,-500.0,0.00014794,2]
[337428040,1725667841864,-500.0,0.00014794,2]
[337428041,1725667841873,-523.35,0.00014794,2]
[337428042,1725667841883,-518.49085422,0.00014794,2]
[337428043,1725667841898,-500.0,0.00014794,2]
[337428044,1725667841907,-500.0,0.00014794,2]
[337428045,1725667841916,-503.74204077,0.00014794,2]
[337428046,1725667841926,-500.57404282,0.00014794,2]
[337428047,1725667841935,-220.84824316,0.00014794,2]
[337428048,1725667841944,-628.37139263,0.00014794,2]
[337428049,1725667841954,-500.37114293,0.00014794,2]
[337428050,1725667841963,-501.13371241,0.00014794,2]
[337428051,1725667841972,-500.91993485,0.00014794,2]
[337428052,1725667841980,-500.56705255,0.00014794,2]
[337428053,1725667841989,-500.0,0.00014794,2]
[337428054,1725667841999,-515.89136988,0.00014794,2]
[337428055,1725667842008,-500.0,0.00014794,2]
[337428056,1725667842017,-500.0,0.00014794,2]
[337428057,1725667842027,-500.85191116,0.00014794,2]
[337428058,1725667842036,-501.61336661,0.00014794,2]
[337428059,1725667842045,-500.0,0.00014794,2]
[337428060,1725667842054,-197.888782,0.00014794,2]
[337428061,1725667842063,-197.888782,0.00014794,2]
[337428062,1725667842072,-197.888782,0.00014794,2]
[337428063,1725667842081,-197.888782,0.00014794,2]
[337428064,1725667842091,-500.0,0.00014794,2]
[337428065,1725667842100,-197.888782,0.00014794,2]
[337428066,1725667842110,-506.89912777,0.00014794,2]
[337428067,1725667842119,-197.888782,0.00014794,2]
[337428068,1725667842128,-500.0,0.00014794,2]
[337428069,1725667842138,-554.04,0.00014794,2]
[337428070,1725667842148,-500.0,0.00014794,2]
[337428071,1725667842157,-500.0,0.00014794,2]
[337428072,1725667842167,-500.0,0.00014794,2]
[337428073,1725667842176,-228.6,0.00014794,2]
[337428074,1725667842186,-522.9745894,0.00014794,2]
[337428075,1725667842195,-500.0,0.00014794,2]
[337428076,1725667842204,-500.0,0.00014794,2]
[337428077,1725667842214,-500.0,0.00014794,2]
[337428078,1725667842223,-500.0,0.00014794,2]
[337428079,1725667842232,-170.56,0.00014794,2]
[337428080,1725667842242,-500.0,0.00014794,2]
[337428081,1725667842251,-500.0,0.00014794,2]
[337428082,1725667842260,-500.0,0.00014794,2]
[337428083,1725667842270,-500.0,0.00014794,2]
[337428084,1725667842279,-500.0,0.00014794,2]
[337428085,1725667842288,-624.56,0.00014794,2]
[337428086,1725667842298,-500.0,0.00014794,2]
[337428087,1725667842307,-500.0,0.00014794,2]
[337428088,1725667842316,-500.0,0.00014794,2]
[337428089,1725667842326,-287.41,0.00014794,2]
[337428090,1725667842336,-300.0,0.00014794,2]
[337428091,1725667842346,-500.0,0.00014794,2]
[337428092,1725667842355,-500.0,0.00014794,2]
[337428093,1725667842365,-500.0,0.00014794,2]
[337428094,1725667842374,-500.0,0.00014794,2]
[337428095,1725667842384,-151.0,0.00014794,2]
[337428096,1725667842394,-151.977013,0.00014794,2]
[337428097,1725667842404,-509.73103232,0.00014794,2]
[337428098,1725667842413,-500.0,0.00014794,2]
[337428099,1725667842422,-500.0,0.00014794,2]
[337428100,1725667842432,-500.0,0.00014794,2]
[337428101,1725667842441,-500.0,0.00014794,2]
[337428102,1725667842451,-500.0,0.00014794,2]
[337428103,1725667842460,-520.86,0.00014794,2]
[337428104,1725667842469,-642.05,0.00014794,2]
[337428105,1725667842479,-500.0,0.00014794,2]
[337428106,1725667842489,-500.0,0.00014794,2]
[337428107,1725667842499,-500.0,0.00014794,2]
[337428108,1725667842509,-500.0,0.00014794,2]
[337428109,1725667842521,-500.0,0.00014794,2]
[337428111,1725667842530,-500.0,0.00014794,2]
[337428112,1725667842540,-500.0,0.00014794,2]
[337428113,1725667842549,-500.0,0.00014794,2]
[337428114,1725667842558,-500.0,0.00014794,2]
[337428115,1725667842567,-500.0,0.00014794,2]
[337428116,1725667842576,-500.0,0.00014794,2]
[337428118,1725667842586,-500.0,0.00014794,2]
[337428120,1725667842595,-334.9116727,0.00014794,2]
[337428121,1725667842605,-500.0,0.00014794,2]
[337428122,1725667842614,-500.0,0.00014794,2]
[337428123,1725667842623,-500.0,0.00014794,2]
[337428124,1725667842632,-500.0,0.00014794,2]
[337428125,1725667842643,-500.0,0.00014794,2]
[337428126,1725667842652,-500.0,0.00014794,2]
[337428127,1725667842661,-500.0,0.00014794,2]
[337428128,1725667842670,-411.39,0.00014794,2]
[337428131,1725667842680,-500.0,0.00014794,2]
[337428134,1725667842689,-500.0,0.00014794,2]
[337428135,1725667842698,-371.59,0.00014794,2]
[337428136,1725667842709,-500.0,0.00014794,2]
[337428137,1725667842718,-500.0,0.00014794,2]
[337428138,1725667842727,-500.0,0.00014794,2]
[337428139,1725667842736,-500.0,0.00014794,2]
[337428140,1725667842745,-500.0,0.00014794,2]
[337428141,1725667842754,-500.0,0.00014794,2]
[337428142,1725667842763,-500.0,0.00014794,2]
[337428143,1725667842773,-193.03,0.00014794,2]
[337428146,1725667842879,-500.0,0.00014794,2]
[337428147,1725667842891,-500.0,0.00014794,2]
[337428148,1725667842901,-500.0,0.00014794,2]
[337428149,1725667842910,-500.0,0.00014794,2]
[337428150,1725667842919,-500.0,0.00014794,2]
[337428151,1725667842928,-195.8156449,0.00014794,2]
[337428152,1725667843051,-4.1043551,0.00014794,2]
[337428153,1725667843061,-186.34,0.00014794,2]
[337428154,1725667843070,-500.0,0.00014794,2]
[337428155,1725667843079,-500.51632691,0.00014794,2]
[337428156,1725667843089,-500.0,0.00014794,2]
[337428157,1725667843098,-500.0,0.00014794,2]
[337428158,1725667843107,-500.0,0.00014794,2]
[337428159,1725667843116,-500.0,0.00014794,2]
[337428160,1725667843125,-500.0,0.00014794,2]
[337428161,1725667843134,-436.61,0.00014794,2]
[337428162,1725667843147,-500.0,0.00014794,2]
[337428163,1725667843156,-500.0,0.00014794,2]
[337428164,1725667843166,-500.0,0.00014794,2]
[337428165,1725667843175,-500.0,0.00014794,2]
[337428166,1725667843184,-500.0,0.00014794,2]
[337428167,1725667843194,-500.0,0.00014794,2]
[337428168,1725667843203,-550.85568791,0.00014794,2]
[337428169,1725667843212,-500.0,0.00014794,2]
[337428170,1725667843222,-500.0,0.00014794,2]
[337428171,1725667843231,-500.0,0.00014794,2]
[337428172,1725667843241,-500.0,0.00014794,2]
[337428173,1725667843252,-500.0,0.00014794,2]
[337428174,1725667843261,-500.0,0.00014794,2]
[337428175,1725667843270,-500.0,0.00014794,2]
[337428176,1725667843280,-500.0,0.00014794,2]
[337428177,1725667843289,-500.0,0.00014794,2]
[337428178,1725667843299,-500.0,0.00014794,2]
[337428179,1725667843308,-500.0,0.00014794,2]
[337428180,1725667843317,-487.98,0.00014794,2]
[337428181,1725667843327,-500.0,0.00014794,2]
[337428182,1725667843336,-500.0,0.00014794,2]
[337428183,1725667843346,-500.0,0.00014794,2]
[337428184,1725667843356,-500.0,0.00014794,2]
[337428185,1725667843365,-500.0,0.00014794,2]
[337428186,1725667843374,-500.0,0.00014794,2]
[337428187,1725667843383,-167.76358237,0.00014794,2]
[337428188,1725667843395,-500.0,0.00014794,2]
[337428189,1725667843404,-500.0,0.00014794,2]
[337428190,1725667843413,-500.0,0.00014794,2]
[337428191,1725667843423,-500.0,0.00014794,2]
[337428192,1725667843433,-398.01,0.00014794,2]